bitfinex-derivatives/quotes_ETHF0:USTF0_20210702
["timestamp","ask_amount","ask_price","bid_price","bid_amount"]
[1625227203017,5.78737,2036.5,2036.4,2.20527]
[1625227203970,5.78737,2036.5,2036.2,2.20527]
[1625227204422,10.78737,2036.5,2035.6,15.6886]
[1625227204974,2.20527,2035.9,2035.8,2.20527]
[1625227205072,4.72557,2035.9,2035.6,17.89387]
[1625227205424,4.72557,2035.9,2035.6,2.20527]
[1625227205525,9.72557,2035.9,2035.6,2.20527]
[1625227205629,4.72557,2035.9,2035.6,2.20527]
[1625227205827,4.72557,2035.9,2034.7,2.01505266]
[1625227205928,4.72557,2035.9,2034.5,2.01434169]
[1625227206378,4.72557,2035.9,2034.2,19.66332027]
[1625227206379,4.72557,2035.9,2034.4,2.0144852]
[1625227206728,4.72557,2035.9,2034.2,15.9224]
[1625227206929,2.20527,2034.9,2034.6,2.20527]
[1625227207030,2.20527,2035.1,2034.6,2.20527]
[1625227210944,2.20527,2034.7,2034.6,2.20527]
[1625227212064,4.69417,2034.7,2034.4,2.20527]
[1625227212160,4.69417,2034.7,2034.2,17.93590067]
[1625227212573,4.69417,2034.7,2033.4,2.01426392]
[1625227212659,9.69417,2034.7,2033.4,2.01426392]
[1625227212960,2.20527,2034.2,2034.1,2.20527]
[1625227213063,4.65877,2034.2,2033.9,2.20527]
[1625227213965,9.65877,2034.2,2033.1,6.77357416]
[1625227214167,9.65877,2034.2,2033.1,4.759]
[1625227214367,4.65877,2034.2,2033.1,4.759]
[1625227215018,2.20527,2033.3,2033.2,2.20527]
[1625227217023,4.41054,2033.3,2033.2,2.20527]
[1625227223031,4.41054,2033.3,2033.2,5.25447]
[1625227223229,1.0,2034.1,2033.2,5.25447]
[1625227223331,16.2324,2035.3,2033.2,5.25447]
[1625227223432,15.2432,2035.3,2033.2,5.25447]
[1625227224032,15.2432,2035.3,2033.3,17.705352]
[1625227224131,5.0,2035.2,2033.3,17.705352]
[1625227224232,5.0,2035.2,2033.2,5.25447]
[1625227224432,1.0,2035.1,2033.2,5.25447]
[1625227224982,1.0,2035.1,2033.2,2.20527]
[1625227225107,4.41054,2033.3,2033.2,2.20527]
[1625227226110,4.41054,2033.3,2032.4,4.759]
[1625227227062,4.41054,2033.3,2033.2,2.20527]
[1625227227163,4.41054,2033.3,2033.2,4.66267]
[1625227227263,1.0,2035.1,2033.2,4.66267]
[1625227228013,5.0,2035.2,2033.2,4.66267]
[1625227228014,5.0,2035.2,2033.2,2.4574]
[1625227228315,5.0,2035.2,2033.0,2.20527]
[1625227228414,9.122,2035.2,2033.0,2.20527]
[1625227228566,9.122,2035.2,2032.6,1.0]
[1625227228715,9.122,2035.2,2032.4,4.759]
[1625227229065,2.20527,2032.7,2032.6,2.20527]
[1625227231119,4.41054,2032.7,2032.6,2.20527]
[1625227233422,3.7981,2033.5,2032.6,2.20527]
[1625227233581,9.122,2035.2,2032.6,2.20527]
[1625227233582,1.0,2035.2,2032.6,5.65857]
[1625227233723,1.0,2035.9,2032.6,5.65857]
[1625227233830,16.2375,2035.3,2032.6,5.65857]
[1625227233972,16.2375,2035.3,2032.7,17.806332]
[1625227234225,16.2375,2035.3,2032.6,2.20527]
[1625227234322,18.9632,2035.3,2032.6,2.20527]
[1625227234725,5.0,2035.2,2032.6,2.20527]
[1625227235127,2.20527,2033.4,2033.2,2.20527]
[1625227236525,1.0,2035.1,2033.2,2.20527]
[1625227236627,16.2375,2035.3,2033.2,5.59387]
[1625227237126,2.20527,2033.8,2033.7,2.20527]
[1625227238678,1.0,2035.2,2033.7,2.20527]
[1625227238777,15.2432,2035.3,2033.7,4.95887]
[1625227239129,2.20527,2035.0,2034.9,2.20527]
[1625227239227,2.20527,2035.0,2034.9,5.46447]
[1625227241187,2.20527,2035.0,2034.9,3.2592]
[1625227241284,2.20527,2035.0,2033.7,3.7536]
[1625227241435,2.20527,2035.0,2033.7,2.7536]
[1625227241985,2.20527,2035.0,2033.8,17.774878]
[1625227243188,2.20527,2035.0,2034.4,2.20527]
[1625227243291,2.20527,2035.0,2034.4,5.15537]
[1625227244689,2.20527,2035.1,2034.4,5.15537]
[1625227245193,4.41054,2035.1,2035.0,2.20527]
[1625227245292,4.41054,2035.1,2035.0,5.52347]
[1625227245393,2.20527,2035.1,2035.0,5.52347]
[1625227247244,4.41054,2035.1,2035.0,5.52347]
[1625227247795,4.41054,2035.1,2035.0,2.20527]
[1625227252207,4.41054,2035.1,2034.8,2.6114]
[1625227253307,4.41054,2035.1,2033.9,2.20527]
[1625227255137,2.20527,2034.6,2034.3,2.20527]
[1625227255947,2.20527,2035.1,2034.3,2.20527]
[1625227256091,15.2432,2035.3,2034.3,5.67497]
[1625227256291,0.9883,2037.2,2034.3,5.67497]
[1625227256492,15.4747,2037.1,2034.4,1.0]
[1625227256593,1.0,2037.0,2034.4,1.0]
[1625227256692,1.0,2037.0,2034.4,18.802479]
[1625227257042,6.0,2037.0,2034.4,18.802479]
[1625227257142,2.20527,2035.8,2035.7,2.20527]
[1625227257245,2.20527,2035.8,2035.7,5.05367]
[1625227258399,1.0,2037.0,2035.7,5.05367]
[1625227258500,15.4747,2037.1,2035.7,22.973524]
[1625227259200,2.20527,2036.7,2036.3,2.20527]
[1625227259296,2.20527,2036.7,2036.3,4.58877]
[1625227259498,5.62707558,2038.8,2036.3,4.58877]
[1625227259499,4.52707558,2038.8,2036.3,4.58877]
[1625227259599,0.985,2038.0,2036.3,9.58877]
[1625227259749,1.98032791,2038.2,2036.3,9.58877]
[1625227259853,1.98032791,2038.2,2036.8,1.15]
[1625227259953,1.98032791,2038.2,2036.8,4.2031]
[1625227260051,4.759,2038.5,2036.8,4.2031]
[1625227260299,4.759,2038.5,2037.5,54.5876]
[1625227260398,4.759,2038.5,2037.5,58.2117]
[1625227260500,5.0,2039.1,2037.5,58.2117]
[1625227260801,1.9875908,2039.4,2037.5,58.2117]
[1625227261206,1.9875908,2039.4,2039.3,4.41054]
[1625227261452,2.04161036,2040.0,2039.3,66.08964]
[1625227261654,0.05,2040.0,2039.3,66.08964]
[1625227261758,0.05,2040.0,2039.3,64.93047522]
[1625227262453,0.05,2040.0,2039.4,17.900805]
[1625227263203,0.05,2040.0,2039.9,4.41054]
[1625227265263,2.25527,2040.0,2039.9,4.41054]
[1625227265768,2.25527,2040.0,2038.0,1.15]
[1625227265859,4.90007,2040.0,2038.0,1.15]
[1625227266309,4.90007,2040.0,2038.1,17.707044]
[1625227267059,2.6948,2040.0,2038.1,17.707044]
[1625227267159,0.05,2040.0,2038.6,1.15]
[1625227267260,0.05,2040.0,2039.9,2.20527]
[1625227267411,0.05,2040.0,2039.9,5.33377]
[1625227271581,0.05,2040.0,2039.9,57.15787]
[1625227271931,0.05,2040.0,2039.9,5.33377]
[1625227273644,2.6032,2040.0,2039.9,2.20527]
[1625227276860,2.6032,2040.0,2039.9,1.04660994]
[1625227276959,2.6032,2040.0,2039.7,2.20527]
[1625227277259,2.20527,2039.8,2039.7,2.20527]
[1625227278665,5.59757,2039.8,2039.7,2.20527]
[1625227297139,5.59757,2039.8,2038.3,16.3245]
[1625227297236,10.59757,2039.8,2038.3,15.3245]
[1625227297344,10.59757,2039.8,2037.6,16.2125]
[1625227297445,2.20527,2038.5,2038.4,2.20527]
[1625227297541,5.10407,2038.5,2038.4,2.20527]
[1625227297645,5.10407,2038.5,2036.7,15.6748]
[1625227298093,5.10407,2038.5,2035.5,21.1123]
[1625227298192,60.4775,2038.1,2035.5,21.1123]
[1625227298294,1.0,2038.0,2036.8,17.925476]
[1625227298394,2.8653,2038.0,2036.8,17.925476]
[1625227298495,7.8653,2038.0,2036.8,17.925476]
[1625227298595,7.8653,2038.0,2035.6,18.788534]
[1625227298696,1.0,2037.9,2035.6,17.788534]
[1625227298798,1.0,2037.9,2035.5,16.1123]
[1625227299148,1.0,2037.9,2035.6,17.846771]
[1625227299498,2.20527,2037.1,2036.9,2.20527]
[1625227300448,56.4063,2037.0,2036.9,2.20527]
[1625227300752,56.4063,2037.0,2036.7,2.20527]
[1625227300849,56.4063,2037.0,2035.5,16.1123]
[1625227301148,56.4063,2037.0,2035.1,16.2021]
[1625227301251,56.4063,2037.0,2034.3,4.759]
[1625227301401,1.0,2036.9,2034.3,4.759]
[1625227301501,1.0,2036.9,2034.5,2.20527]
[1625227301502,2.20527,2035.0,2034.5,2.20527]
[1625227301603,4.59687,2035.0,2034.5,2.20527]
[1625227301902,4.59687,2035.0,2034.6,17.892478]
[1625227303103,2.20527,2035.0,2034.6,17.892478]
[1625227303452,2.20527,2035.0,2034.9,2.20527]
[1625227304303,2.20527,2035.0,2034.5,2.20527]
[1625227304453,5.22507,2035.0,2034.5,2.20527]
[1625227304904,5.22507,2035.0,2034.6,17.943713]
[1625227305605,5.22507,2035.0,2034.4,2.20527]
[1625227305908,5.22507,2035.0,2034.7,17.988875]
[1625227306107,5.22507,2035.0,2034.5,17.844896]
[1625227306407,5.22507,2035.0,2034.4,2.20527]
[1625227306757,5.22507,2035.0,2034.5,17.981166]
[1625227307108,5.22507,2035.0,2034.3,17.871933]
[1625227307361,5.22507,2035.0,2034.6,17.797337]
[1625227307560,2.20527,2034.7,2034.6,17.797337]
[1625227307662,2.20527,2034.7,2034.2,2.20527]
[1625227307663,2.20527,2034.7,2034.3,17.763001]
[1625227307913,5.35927,2034.7,2034.6,17.874506]
[1625227308213,5.35927,2034.7,2034.3,17.992217]
[1625227308515,5.35927,2034.7,2034.6,17.984079]
[1625227308816,5.35927,2034.7,2034.3,17.725329]
[1625227309015,5.35927,2034.7,2034.6,17.963847]
[1625227309268,5.35927,2034.7,2034.2,2.20527]
[1625227309368,5.35927,2034.7,2034.3,17.932195]
[1625227309515,2.20527,2034.4,2034.3,17.932195]
[1625227309615,2.20527,2034.4,2034.2,2.20527]
[1625227309918,2.20527,2034.4,2033.9,2.20527]
[1625227310567,2.20527,2034.4,2034.0,17.768893]
[1625227310866,2.20527,2034.4,2032.9,26.8223]
[1625227311171,2.20527,2034.4,2032.9,11.745]
[1625227311518,2.20527,2033.7,2033.6,2.20527]
[1625227311617,1.0,2035.3,2033.6,5.34387]
[1625227311717,14.7773,2035.4,2033.6,5.34387]
[1625227311917,3.2022,2036.3,2033.7,17.731642]
[1625227312167,59.4743,2034.4,2033.6,20.121527]
[1625227312270,62.3128,2034.4,2033.6,2.20527]
[1625227313570,4.41054,2033.7,2033.4,2.20527]
[1625227313670,7.34404,2033.7,2033.4,2.20527]
[1625227313921,7.34404,2033.7,2032.9,4.759]
[1625227314471,7.34404,2033.7,2032.5,15.3744]
[1625227314574,7.34404,2033.7,2031.9,20.0645]
[1625227314873,7.34404,2033.7,2031.9,4.759]
[1625227315229,7.34404,2033.7,2032.0,17.870473]
[1625227315439,56.4576,2032.7,2032.0,17.870473]
[1625227315543,2.20527,2032.4,2032.3,2.20527]
[1625227317199,1.0,2034.3,2032.3,2.20527]
[1625227317301,67.6302,2034.4,2032.3,2.20527]
[1625227317401,67.6302,2034.4,2032.3,19.964969]
[1625227317607,2.20527,2033.0,2032.3,19.964969]
[1625227318706,2.20527,2033.0,2032.3,2.20527]
[1625227319559,2.20527,2032.7,2032.6,2.20527]
[1625227319712,2.20527,2032.7,2032.6,5.15147]
[1625227321114,2.20527,2032.7,2032.6,2.9462]
[1625227321263,2.20527,2032.7,2032.3,2.20527]
[1625227321515,5.21357,2032.7,2030.9,11.745]
[1625227321664,2.20527,2032.1,2032.0,2.20527]
[1625227321762,5.91157,2032.1,2032.0,2.20527]
[1625227322415,5.91157,2032.1,2031.8,2.20527]
[1625227323668,2.20527,2031.9,2031.4,2.20527]
[1625227324470,2.20527,2031.9,2029.6,15.9506]
[1625227324620,2.20527,2031.9,2029.6,14.9506]
[1625227325227,2.20527,2031.9,2029.7,17.786146]
[1625227325677,2.20527,2030.8,2030.6,2.20527]
[1625227325977,2.20527,2030.8,2030.7,18.015185]
[1625227326133,1.04282834,2030.8,2030.7,18.015185]
[1625227326379,1.04282834,2030.8,2030.6,2.20527]
[1625227326483,3.70012834,2030.8,2030.6,2.20527]
[1625227328898,3.70012834,2030.8,2030.4,2.20527]
[1625227329650,2.20527,2030.5,2030.4,2.20527]
[1625227331556,1.04282834,2030.8,2030.4,2.20527]
[1625227331652,1.04282834,2030.8,2030.7,2.20527]
[1625227333363,1.04282834,2030.8,2030.4,2.20527]
[1625227333715,2.20527,2030.5,2030.4,2.20527]
[1625227337926,1.0,2031.9,2030.4,2.20527]
[1625227338030,53.7745,2032.3,2030.4,4.53777]
[1625227338526,53.7745,2032.3,2030.5,17.732687]
[1625227338627,58.7745,2032.3,2030.5,17.732687]
[1625227338727,53.7745,2032.3,2030.5,17.732687]
[1625227339829,2.20527,2031.4,2031.2,2.20527]
[1625227339929,2.20527,2031.4,2031.2,5.48697]
[1625227340485,1.0,2033.2,2031.2,5.48697]
[1625227340585,58.14,2033.4,2031.2,5.48697]
[1625227340785,5.0,2032.8,2031.2,5.48697]
[1625227341549,5.0,2032.8,2031.3,17.927107]
[1625227341747,2.20527,2031.8,2031.7,2.20527]
[1625227343506,2.20527,2031.8,2031.2,2.20527]
[1625227343810,4.41054,2031.3,2031.2,2.20527]
[1625227346215,1.0,2032.5,2031.2,2.20527]
[1625227346364,16.1518,2032.9,2031.2,5.48937]
[1625227346461,15.1518,2032.9,2031.2,5.48937]
[1625227346864,5.0,2032.8,2031.2,5.48937]
[1625227347762,2.20527,2031.6,2031.2,5.48937]
[1625227348413,5.29957,2031.6,2031.2,2.20527]
[1625227348715,5.29957,2031.6,2031.0,2.20527]
[1625227349819,4.41054,2031.1,2031.0,2.20527]
[1625227350521,4.41054,2031.1,2030.6,2.20527]
[1625227351820,2.20527,2030.7,2030.6,2.20527]
[1625227351921,2.20527,2031.1,2030.6,2.20527]
[1625227353775,2.20527,2031.1,2030.9,2.20527]
[1625227353876,2.20527,2031.1,2030.6,2.20527]
[1625227355782,2.20527,2030.8,2030.6,2.20527]
[1625227360838,2.20527,2031.1,2030.6,2.20527]
[1625227361840,4.41054,2031.1,2030.6,2.20527]
[1625227365711,1.0,2032.0,2030.6,5.12007]
[1625227365814,1.0,2032.4,2030.6,5.12007]
[1625227365912,2.20527,2031.7,2031.6,2.20527]
[1625227366012,2.20527,2031.7,2031.6,4.86717]
[1625227366563,2.20527,2031.9,2031.6,4.86717]
[1625227366763,20.1518,2032.9,2031.6,4.86717]
[1625227366866,15.1518,2032.9,2031.6,4.86717]
[1625227367114,1.0,2033.5,2031.6,4.86717]
[1625227367219,59.4743,2034.4,2031.6,4.86717]
[1625227367315,59.4743,2034.4,2031.7,17.990307]
[1625227367415,15.7061,2034.3,2031.7,17.990307]
[1625227367867,2.20527,2032.9,2032.7,2.20527]
[1625227368018,2.20527,2032.9,2032.7,5.68927]
[1625227368817,2.20527,2033.1,2032.7,5.68927]
[1625227369868,2.20527,2033.1,2033.0,2.20527]
[1625227370928,2.20527,2033.1,2033.0,5.22077]
[1625227374785,2.20527,2033.4,2033.0,5.22077]
[1625227375939,2.20527,2033.4,2033.3,2.20527]
[1625227379098,45.68137,2033.4,2033.3,2.20527]
[1625227380001,45.68137,2033.4,2033.0,2.20527]
[1625227381167,2.20527,2033.4,2033.0,2.20527]
[1625227381668,55.9585,2033.3,2033.0,2.20527]
[1625227382022,2.20527,2033.1,2033.0,2.20527]
[1625227387727,2.20527,2033.4,2033.0,2.20527]
[1625227387830,2.20527,2033.4,2033.0,5.56507]
[1625227388028,2.20527,2033.4,2033.3,2.20527]
[1625227389583,2.20527,2033.7,2033.3,2.20527]
[1625227390033,2.20527,2033.7,2033.6,2.20527]
[1625227390135,1.0,2034.7,2033.6,5.49687]
[1625227390284,15.66,2035.3,2033.7,1.0]
[1625227390488,17.0902926,2035.3,2033.7,1.0]
[1625227390590,1.4302926,2035.3,2033.7,1.0]
[1625227390838,16.94782237,2036.2,2034.4,51.0642]
[1625227390939,16.94782237,2036.2,2034.5,1.0]
[1625227391239,15.5181,2036.2,2034.5,1.0]
[1625227392141,2.20527,2036.1,2036.0,2.20527]
[1625227392440,2.20527,2036.1,2036.0,1.04412974]
[1625227392592,2.20527,2036.1,2035.8,1.04412974]
[1625227394150,2.20527,2035.9,2035.8,1.04412974]
[1625227394797,2.20527,2035.9,2035.5,2.20527]
[1625227397758,2.20527,2035.9,2035.4,2.20527]
[1625227398104,2.20527,2035.6,2035.4,2.20527]
[1625227398217,4.56267,2035.6,2035.4,2.20527]
[1625227399269,4.56267,2035.6,2033.0,59.3567]
[1625227399472,4.56267,2035.6,2032.5,2.39417083]
[1625227399773,4.56267,2035.6,2032.5,1.42177083]
[1625227399875,4.56267,2035.6,2032.2,1.42253107]
[1625227400073,2.20527,2034.7,2034.0,2.20527]
[1625227400174,5.88087,2034.7,2034.0,2.20527]
[1625227400631,6.86697,2034.7,2034.0,2.20527]
[1625227400726,5.88087,2034.7,2034.0,2.20527]
[1625227402031,5.88087,2034.7,2032.1,30.2974]
[1625227402128,2.20527,2033.5,2033.4,2.20527]
[1625227402229,5.08877,2033.5,2033.4,2.20527]
[1625227403833,5.08877,2033.5,2033.4,3.20527]
[1625227405088,2.8835,2033.5,2033.4,3.20527]
[1625227405336,2.8835,2033.5,2033.4,2.20527]
[1625227406104,5.08877,2033.5,2033.4,2.20527]
[1625227408308,5.08877,2033.5,2033.2,2.20527]
[1625227408407,5.08877,2033.5,2032.2,4.759]
[1625227408510,10.08877,2033.5,2032.3,1.0]
[1625227408615,10.08877,2033.5,2032.1,14.9023]
[1625227408710,10.08877,2033.5,2031.3,4.759]
[1625227409367,10.08877,2033.5,2031.4,17.868198]
[1625227409471,5.08877,2033.5,2031.4,17.868198]
[1625227409573,5.08877,2033.5,2031.5,1.0]
[1625227409825,53.4159,2033.2,2031.5,1.0]
[1625227410028,53.4159,2033.2,2031.6,1.0]
[1625227410125,2.20527,2032.6,2032.5,2.20527]
[1625227410226,4.49207,2032.6,2032.5,2.20527]
[1625227412130,6.69734,2032.6,2032.5,2.20527]
[1625227412379,6.69734,2032.6,2032.5,3.20527]
[1625227412528,4.41054,2032.6,2032.5,3.20527]
[1625227413081,21.1839,2034.0,2032.5,3.20527]
[1625227413230,16.1839,2034.0,2032.5,3.20527]
[1625227414186,2.20527,2033.7,2033.6,2.20527]
[1625227414282,2.20527,2033.7,2033.6,5.72497]
[1625227414686,1.43503918,2034.9,2033.6,5.72497]
[1625227414784,2.00905486,2035.0,2033.6,5.72497]
[1625227414785,1.43491317,2035.0,2033.6,5.72497]
[1625227415088,6.43466955,2035.1,2033.6,5.72497]
[1625227415484,1.43469931,2035.0,2033.6,5.72497]
[1625227416184,2.20527,2034.1,2033.6,5.72497]
[1625227418190,2.20527,2034.1,2033.9,2.20527]
[1625227418289,2.20527,2034.1,2034.0,1.0]
[1625227419441,2.20527,2034.1,2033.9,2.20527]
[1625227419590,2.20527,2034.1,2033.9,1.0]
[1625227421743,5.88017,2034.1,2033.9,1.0]
[1625227422747,5.88017,2034.1,2033.6,2.20527]
[1625227423560,5.88017,2034.1,2031.8,19.8933]
[1625227423861,5.88017,2034.1,2031.9,1.0]
[1625227423962,10.88017,2034.1,2031.9,1.0]
[1625227424310,2.20527,2033.3,2033.2,2.20527]
[1625227424411,4.98487,2033.3,2033.2,2.20527]
[1625227425314,4.98487,2033.3,2032.9,1.0]
[1625227425416,4.98487,2033.3,2031.8,19.8933]
[1625227425516,51.5602,2033.2,2031.9,1.0]
[1625227425618,56.5602,2033.2,2031.9,1.0]
[1625227425867,51.5602,2033.2,2031.9,1.0]
[1625227426271,2.20527,2032.3,2032.1,2.20527]
[1625227426420,5.72437,2032.3,2032.2,1.0]
[1625227427578,3.5191,2032.3,2032.2,1.0]
[1625227427678,2.7796,2033.3,2032.2,1.0]
[1625227428184,49.0563,2033.7,2032.2,1.0]
[1625227428331,2.20527,2032.8,2032.6,2.20527]
[1625227428431,2.20527,2032.8,2032.7,1.0]
[1625227429132,2.20527,2033.0,2032.7,1.0]
[1625227432389,2.20527,2033.0,2032.9,2.20527]
[1625227432493,2.20527,2033.0,2032.9,6.75137]
[1625227435666,2.20527,2033.0,2032.9,3.20527]
[1625227437718,2.20527,2033.0,2032.9,2.20527]
[1625227437867,4.65877,2033.0,2032.9,2.20527]
[1625227438269,4.65877,2033.0,2032.9,3.20527]
[1625227438568,4.65877,2033.0,2032.9,2.20527]
[1625227438921,4.65877,2033.0,2032.9,3.20527]
[1625227443048,4.65877,2033.0,2032.9,2.20527]
[1625227443800,4.65877,2033.0,2032.9,3.20527]
[1625227443899,4.65877,2033.0,2032.9,2.20527]
[1625227444101,4.65877,2033.0,2032.6,2.20527]
[1625227444300,4.65877,2033.0,2032.7,1.0]
[1625227444401,2.20527,2032.8,2032.6,2.20527]
[1625227449008,2.20527,2032.8,2032.7,1.0]
[1625227450509,2.20527,2032.8,2032.7,3.20527]
[1625227455225,2.20527,2032.8,2032.7,6.10627]
[1625227455427,2.20527,2033.0,2032.7,6.10627]
[1625227455630,1.44177453,2034.0,2032.7,6.10627]
[1625227456029,1.44177453,2034.0,2032.8,17.999544]
[1625227456131,3.74861377,2034.4,2032.9,1.0]
[1625227456132,1.4416083,2034.3,2032.9,1.0]
[1625227456329,1.4416083,2034.3,2033.6,44.2283]
[1625227456430,1.4416083,2034.3,2033.7,1.0]
[1625227456579,1.4416083,2034.3,2034.2,4.41054]
[1625227456580,2.20527,2034.3,2034.2,4.41054]
[1625227456690,2.20527,2034.3,2034.2,8.37604]
[1625227457994,2.20527,2034.3,2034.2,61.70604]
[1625227459045,17.53950997,2034.9,2034.2,61.70604]
[1625227459344,1.44140997,2034.9,2034.2,61.70604]
[1625227459849,1.44111974,2035.0,2034.2,61.70604]
[1625227460600,1.44111974,2035.0,2034.9,2.20527]
[1625227460701,1.44111974,2035.0,2034.9,3.20527]
[1625227461001,1.44103327,2035.1,2034.9,3.20527]
[1625227461500,1.44103327,2035.1,2035.0,60.5282]
[1625227461604,1.44103327,2035.1,2035.0,61.5282]
[1625227461951,1.44053992,2035.4,2035.0,61.5282]
[1625227462149,1.44053992,2035.4,2035.0,1.0]
[1625227462552,1.44053992,2035.4,2035.3,2.20527]
[1625227462649,1.44053992,2035.4,2035.3,3.20527]
[1625227463007,1.44021156,2035.7,2035.3,3.20527]
[1625227463104,1.44021156,2035.7,2035.6,57.2344]
[1625227463198,1.44021156,2035.7,2035.6,58.2344]
[1625227463455,2.01629618,2035.8,2035.6,58.2344]
[1625227463456,1.44017146,2035.8,2035.6,58.2344]
[1625227464306,1.4392942,2035.9,2035.6,58.2344]
[1625227464615,1.43927679,2036.1,2035.8,4.41054]
[1625227464707,1.43927679,2036.1,2035.9,1.0]
[1625227465520,1.43905456,2036.2,2035.9,1.0]
[1625227465920,3.74154184,2036.6,2035.9,1.0]
[1625227465921,1.43872038,2036.6,2036.0,17.882213]
[1625227466027,1.43872038,2036.6,2036.1,1.0]
[1625227466371,4.21739503,2037.0,2036.2,17.958274]
[1625227466472,4.21739503,2037.0,2036.3,1.0]
[1625227466573,4.21739503,2037.0,2036.9,4.41054]
[1625227466672,4.21739503,2037.0,2036.9,5.41054]
[1625227466772,4.21739503,2037.0,2036.9,4.25002457]
[1625227467676,2.20527,2037.0,2036.9,4.25002457]
[1625227467777,2.20527,2037.0,2036.9,3.25002457]
[1625227468529,4.21533621,2037.0,2035.8,61.0799]
[1625227468625,7.61193621,2037.0,2036.5,2.20527]
[1625227468827,5.60187,2037.0,2036.5,2.20527]
[1625227468929,5.60187,2037.0,2036.7,46.2228]
[1625227469029,5.60187,2037.0,2036.8,1.0]
[1625227469631,5.60187,2037.0,2036.5,2.20527]
[1625227469933,5.60187,2037.0,2036.6,1.0]
[1625227470592,5.60187,2037.0,2036.9,2.20527]
[1625227470742,5.60187,2037.0,2036.9,3.20527]
[1625227471346,2.20527,2037.0,2036.9,3.20527]
[1625227472098,2.20527,2037.1,2036.9,3.20527]
[1625227472653,2.20527,2037.1,2037.0,2.20527]
[1625227472753,2.20527,2037.1,2037.0,3.20527]
[1625227474705,2.20527,2037.1,2037.0,2.20527]
[1625227476760,2.20527,2037.1,2037.0,3.20527]
[1625227477008,2.20527,2037.5,2037.0,5.90887]
[1625227477506,2.20527,2037.5,2037.3,49.2007]
[1625227478561,2.20527,2037.5,2037.0,5.90887]
[1625227478660,2.20527,2037.5,2037.4,2.20527]
[1625227481068,2.20527,2037.9,2037.4,2.20527]
[1625227481268,2.20527,2037.9,2037.4,3.20527]
[1625227481774,2.20527,2037.9,2037.4,2.20527]
[1625227482673,4.41054,2037.9,2037.8,2.20527]
[1625227482784,4.41054,2037.9,2035.8,61.0799]
[1625227482875,6.71774,2037.9,2035.9,1.0]
[1625227483274,53.9953,2037.7,2035.9,1.0]
[1625227483525,53.9953,2037.7,2036.0,17.847398]
[1625227483626,53.9953,2037.7,2036.1,1.0]
[1625227484028,6.71774,2037.9,2036.1,1.0]
[1625227484725,2.20527,2037.0,2036.8,2.20527]
[1625227484875,5.19287,2037.0,2036.8,2.20527]
[1625227485536,5.19287,2037.0,2035.5,14.7677]
[1625227485728,5.19287,2037.0,2034.3,15.7452]
[1625227486142,46.5544,2036.4,2034.3,15.7452]
[1625227486235,49.7584,2036.4,2034.3,15.7452]
[1625227486341,49.7584,2036.4,2034.4,17.777987]
[1625227486431,3.204,2036.4,2034.4,17.777987]
[1625227486731,2.20527,2035.9,2035.8,2.20527]
[1625227487634,4.67447,2035.9,2035.8,2.20527]
[1625227487936,4.67447,2035.9,2035.7,1.0]
[1625227488737,2.20527,2035.8,2035.7,1.0]
[1625227488840,2.20527,2035.8,2035.3,2.20527]
[1625227488937,2.20527,2035.8,2035.4,1.0]
[1625227490451,2.20527,2035.8,2035.3,2.20527]
[1625227490546,5.95727,2035.8,2035.3,2.20527]
[1625227490790,5.95727,2035.8,2035.7,2.20527]
[1625227491191,5.95727,2035.8,2035.3,2.20527]
[1625227492854,2.20527,2035.4,2035.3,2.20527]
[1625227493608,2.20527,2035.4,2035.3,3.20527]
[1625227494365,2.20527,2035.8,2035.3,3.20527]
[1625227496869,2.20527,2035.8,2035.7,2.20527]
[1625227496967,2.20527,2035.8,2035.7,3.20527]
[1625227498977,2.20527,2035.8,2035.7,2.20527]
[1625227499172,2.20527,2035.8,2035.4,1.0]
[1625227499274,5.39497,2035.8,2035.4,1.0]
[1625227500878,2.20527,2035.5,2035.3,2.20527]
[1625227500980,2.20527,2035.5,2035.3,3.20527]
[1625227501179,2.20527,2035.5,2035.3,2.20527]
[1625227502832,2.20527,2035.4,2035.3,2.20527]
[1625227503181,2.20527,2035.4,2035.2,2.20527]
[1625227504032,2.20527,2035.4,2033.7,46.5332]
[1625227504432,2.20527,2035.4,2033.8,1.0]
[1625227504682,2.20527,2035.4,2033.8,18.835104]
[1625227504881,2.20527,2034.7,2034.6,2.20527]
[1625227504982,5.06057,2034.7,2034.6,2.20527]
[1625227505483,5.06057,2034.7,2034.6,3.20527]
[1625227505683,5.06057,2034.7,2034.6,2.20527]
[1625227506089,5.06057,2034.7,2034.4,2.20527]
[1625227506385,5.06057,2034.7,2033.1,14.9149]
[1625227506488,5.06057,2034.7,2032.2,5.0]
[1625227506589,5.06057,2034.7,2032.9,20.7757]
[1625227506791,5.06057,2034.7,2033.0,1.0]
[1625227506894,2.20527,2034.2,2034.1,2.20527]
[1625227506988,5.76307,2034.2,2034.1,2.20527]
[1625227507238,5.76307,2034.2,2032.9,4.759]
[1625227507488,5.76307,2034.2,2031.7,16.169]
[1625227507788,5.76307,2034.2,2031.8,1.0]
[1625227508238,5.76307,2034.2,2031.9,17.853022]
[1625227508338,5.76307,2034.2,2032.0,1.0]
[1625227508439,41.8943,2033.6,2032.0,1.0]
[1625227508539,45.2087,2033.6,2032.0,1.0]